[Event "*** Titled Tuesday Blitz"]
[Site "Chess.com"]
[Date "2020.05.12"]
[Round "6"]
[White "profofchess"]
[Black "Leonid_Starozhilov"]
[Result "0-1"]
[WhiteElo "2421"]
[BlackElo "2646"]
[TimeControl "180+1"]
[EndTime "11:07:57 PDT"]
[Termination "Leonid_Starozhilov won by resignation"]

1. e4 {[%clk 0:03:00.9]} 1... g6 {[%clk 0:02:59.7]} 2. d4 {[%clk 0:03:00.3]}
2... Bg7 {[%clk 0:03:00.2]} 3. Nc3 {[%clk 0:03:00.8]} 3... d6 {[%clk 0:03:00.6]}
4. Bg5 {[%clk 0:02:57.8]} 4... Nc6 {[%clk 0:02:57.8]} 5. d5 {[%clk 0:02:50.7]}
5... Nb8 {[%clk 0:02:57.1]} 6. Qd2 {[%clk 0:02:47.3]} 6... c6 {[%clk 0:02:55.2]}
7. Nf3 {[%clk 0:02:38.8]} 7... Qa5 {[%clk 0:02:52.2]} 8. h4 {[%clk 0:02:34]}
8... h6 {[%clk 0:02:48.6]} 9. Be3 {[%clk 0:02:31.8]} 9... Nf6 {[%clk 0:02:33.8]}
10. Be2 {[%clk 0:02:28]} 10... Bg4 {[%clk 0:02:29.4]} 11. O-O-O {[%clk
0:02:02.3]} 11... Bxf3 {[%clk 0:02:22.3]} 12. gxf3 {[%clk 0:01:54.8]} 12... Nbd7
{[%clk 0:02:18.3]} 13. Kb1 {[%clk 0:01:51.6]} 13... cxd5 {[%clk 0:02:04.5]} 14.
exd5 {[%clk 0:01:38.3]} 14... Rc8 {[%clk 0:01:49.4]} 15. Bd4 {[%clk 0:01:35]}
15... Nh5 {[%clk 0:01:42.6]} 16. Rdg1 {[%clk 0:01:21.8]} 16... Qb4 {[%clk
0:01:15.4]} 17. Rg4 {[%clk 0:00:59]} 17... Bxd4 {[%clk 0:01:10.4]} 18. Rxd4
{[%clk 0:00:57.6]} 18... Qa5 {[%clk 0:00:59.1]} 19. f4 {[%clk 0:00:54.8]} 19...
Nhf6 {[%clk 0:00:55.5]} 20. Qe3 {[%clk 0:00:36.4]} 20... Kf8 {[%clk 0:00:38.7]}
21. Bf3 {[%clk 0:00:35.7]} 21... Nb6 {[%clk 0:00:31.3]} 22. Re1 {[%clk
0:00:34.6]} 22... Re8 {[%clk 0:00:20.2]} 23. Qd3 {[%clk 0:00:26.6]} 23... Nbd7
{[%clk 0:00:15.9]} 24. Qe3 {[%clk 0:00:20.4]} 24... Qb6 {[%clk 0:00:15.2]} 25.
Rd2 {[%clk 0:00:17.4]} 25... Qxe3 {[%clk 0:00:13.6]} 26. fxe3 {[%clk 0:00:17.8]}
26... a6 {[%clk 0:00:12.7]} 27. e4 {[%clk 0:00:18]} 27... Nb6 {[%clk 0:00:11.2]}
28. e5 {[%clk 0:00:16.3]} 28... Nfd7 {[%clk 0:00:11.7]} 29. e6 {[%clk
0:00:13.1]} 29... Nf6 {[%clk 0:00:08.6]} 30. Rde2 {[%clk 0:00:09.7]} 30... Kg7
{[%clk 0:00:08.3]} 31. Rg1 {[%clk 0:00:06.2]} 31... fxe6 {[%clk 0:00:06.5]} 32.
Rxe6 {[%clk 0:00:06.1]} 32... Kf7 {[%clk 0:00:06.5]} 33. Be4 {[%clk 0:00:04.6]}
33... Rhg8 {[%clk 0:00:05.9]} 34. Bf3 {[%clk 0:00:03]} 34... Nbd7 {[%clk
0:00:05.9]} 35. Re2 {[%clk 0:00:02.2]} 35... Nc5 {[%clk 0:00:05.9]} 36. Reg2
{[%clk 0:00:02.7]} 36... b5 {[%clk 0:00:06.2]} 37. Kc1 {[%clk 0:00:03.2]} 37...
Rg7 {[%clk 0:00:06.5]} 38. Ne2 {[%clk 0:00:03.6]} 38... Nce4 {[%clk 0:00:06]}
39. Bxe4 {[%clk 0:00:03.3]} 39... Nxe4 {[%clk 0:00:06.9]} 40. Nd4 {[%clk
0:00:03.7]} 40... Nf6 {[%clk 0:00:05.4]} 41. f5 {[%clk 0:00:03.4]} 41... g5
{[%clk 0:00:03.8]} 42. hxg5 {[%clk 0:00:03.3]} 42... hxg5 {[%clk 0:00:04.7]} 43.
Ne6 {[%clk 0:00:03.6]} 43... Rgg8 {[%clk 0:00:05.1]} 44. Nxg5+ {[%clk
0:00:02.5]} 44... Rxg5 {[%clk 0:00:04.4]} 45. Rxg5 {[%clk 0:00:02]} 45... Rh8
{[%clk 0:00:05.1]} 46. Rg7+ {[%clk 0:00:02.7]} 46... Ke8 {[%clk 0:00:05.4]} 47.
R7g6 {[%clk 0:00:02.6]} 47... Kd7 {[%clk 0:00:05.5]} 48. Re1 {[%clk 0:00:02.9]}
48... Nxd5 {[%clk 0:00:05.5]} 49. Rg7 {[%clk 0:00:03.3]} 49... Re8 {[%clk
0:00:04.4]} 50. Rf7 {[%clk 0:00:02.7]} 50... Nf6 {[%clk 0:00:04.9]} 51. Rg7
{[%clk 0:00:01.9]} 51... Kd8 {[%clk 0:00:05.4]} 52. Rf7 {[%clk 0:00:02.3]} 52...
Nd5 {[%clk 0:00:05.8]} 53. Re6 {[%clk 0:00:02.7]} 53... Nf4 {[%clk 0:00:05.8]}
54. Re4 {[%clk 0:00:02.2]} 54... Nd5 {[%clk 0:00:06.5]} 55. Rd4 {[%clk
0:00:02.4]} 55... Nf6 {[%clk 0:00:06.7]} 56. Rxf6 {[%clk 0:00:01.3]} 56... exf6
{[%clk 0:00:07.6]} 57. Rxd6+ {[%clk 0:00:01.8]} 57... Kc7 {[%clk 0:00:08.5]} 58.
Rxa6 {[%clk 0:00:02]} 58... Re5 {[%clk 0:00:08]} 59. Rxf6 {[%clk 0:00:02.9]}
59... Re4 {[%clk 0:00:08.5]} 60. Kd2 {[%clk 0:00:03.4]} 60... Rf4 {[%clk
0:00:09.4]} 61. Kd3 {[%clk 0:00:04]} 61... Rf1 {[%clk 0:00:10]} 62. Rf7+ {[%clk
0:00:04.4]} 62... Kd6 {[%clk 0:00:09.9]} 63. Rf8 {[%clk 0:00:05]} 63... Ke7
{[%clk 0:00:10.2]} 64. f6+ {[%clk 0:00:05.4]} 64... Kxf8 {[%clk 0:00:09.6]} 65.
Kd4 {[%clk 0:00:05.9]} 65... Rf5 {[%clk 0:00:09.8]} 66. c4 {[%clk 0:00:04.9]}
66... bxc4 {[%clk 0:00:09.8]} 67. Kxc4 {[%clk 0:00:05.8]} 67... Rxf6 {[%clk
0:00:10.4]} 68. a4 {[%clk 0:00:06.2]} 68... Ke8 {[%clk 0:00:11.3]} 69. a5 {[%clk
0:00:06.1]} 69... Kd8 {[%clk 0:00:12.2]} 70. b4 {[%clk 0:00:06.6]} 70... Kc8
{[%clk 0:00:13.1]} 71. b5 {[%clk 0:00:07]} 71... Kb7 {[%clk 0:00:14]} 72. Kc5
{[%clk 0:00:07.4]} 72... Rf5+ {[%clk 0:00:14.1]} 73. Kb4 {[%clk 0:00:07.4]}
73... Rh5 {[%clk 0:00:14.6]} 74. Kc4 {[%clk 0:00:06.6]} 74... Kc7 {[%clk
0:00:15.1]} 75. Kb4 {[%clk 0:00:06.9]} 75... Kd6 {[%clk 0:00:15.4]} 76. a6
{[%clk 0:00:06.7]} 76... Kc7 {[%clk 0:00:15.7]} 77. Ka5 {[%clk 0:00:07.1]} 77...
Rg5 {[%clk 0:00:15.2]} 78. a7 {[%clk 0:00:04.6]} 78... Kb7 {[%clk 0:00:15.3]}
79. a8=Q+ {[%clk 0:00:04.8]} 79... Kxa8 {[%clk 0:00:15.6]} 80. Ka6 {[%clk
0:00:05.3]} 80... Kb8 {[%clk 0:00:15.7]} 81. b6 {[%clk 0:00:05.5]} 81... Rg6
{[%clk 0:00:15.3]} 82. Kb5 {[%clk 0:00:05.1]} 82... Kb7 {[%clk 0:00:15.7]} 83.
Kc5 {[%clk 0:00:06]} 83... Rxb6 {[%clk 0:00:16.3]} 0-1

[Event "*** Titled Tuesday Blitz"]
[Site "Chess.com"]
[Date "2020.05.12"]
[Round "6"]
[White "Alopekos"]
[Black "Kirill_Klukin"]
[Result "0-1"]
[WhiteElo "2480"]
[BlackElo "2698"]
[TimeControl "180+1"]
[EndTime "11:07:59 PDT"]
[Termination "Kirill_Klukin won by resignation"]

1. e4 {[%clk 0:03:00.9]} 1... c5 {[%clk 0:02:54.9]} 2. Nc3 {[%clk 0:02:59.7]}
2... Nc6 {[%clk 0:02:55.3]} 3. Nge2 {[%clk 0:02:58.6]} 3... e5 {[%clk
0:02:54.9]} 4. Nd5 {[%clk 0:02:58.2]} 4... Nf6 {[%clk 0:02:54.2]} 5. Nec3 {[%clk
0:02:57.8]} 5... Be7 {[%clk 0:02:53.7]} 6. Bc4 {[%clk 0:02:57.4]} 6... O-O
{[%clk 0:02:53.6]} 7. d3 {[%clk 0:02:57.9]} 7... d6 {[%clk 0:02:53.9]} 8. O-O
{[%clk 0:02:55.7]} 8... Be6 {[%clk 0:02:54.5]} 9. f4 {[%clk 0:02:46.3]} 9...
exf4 {[%clk 0:02:54.1]} 10. Bxf4 {[%clk 0:02:44.4]} 10... a6 {[%clk 0:02:54.6]}
11. Nxe7+ {[%clk 0:02:36.2]} 11... Qxe7 {[%clk 0:02:52.3]} 12. Bg5 {[%clk
0:02:36.7]} 12... Bxc4 {[%clk 0:02:36.1]} 13. dxc4 {[%clk 0:02:19.5]} 13... Qe5
{[%clk 0:02:33]} 14. Bxf6 {[%clk 0:02:15.3]} 14... gxf6 {[%clk 0:02:33.9]} 15.
Nd5 {[%clk 0:02:12.9]} 15... Kh8 {[%clk 0:01:53]} 16. Nxf6 {[%clk 0:02:10.6]}
16... Qd4+ {[%clk 0:01:45.1]} 17. Kh1 {[%clk 0:02:09.8]} 17... Qxd1 {[%clk
0:01:40.1]} 18. Raxd1 {[%clk 0:02:10.7]} 18... Rad8 {[%clk 0:01:40.1]} 19. Rd5
{[%clk 0:01:33.6]} 19... Ne5 {[%clk 0:01:34.2]} 20. b3 {[%clk 0:01:26.3]} 20...
b5 {[%clk 0:01:29.4]} 21. Rfd1 {[%clk 0:00:39.5]} 21... bxc4 {[%clk 0:01:12]}
22. Rxd6 {[%clk 0:00:38.7]} 22... Rxd6 {[%clk 0:01:12.9]} 23. Rxd6 {[%clk
0:00:39]} 23... cxb3 {[%clk 0:01:13.8]} 24. axb3 {[%clk 0:00:35.6]} 24... c4
{[%clk 0:01:14.3]} 25. Rxa6 {[%clk 0:00:27.9]} 25... Rd8 {[%clk 0:01:02.7]} 26.
Nd5 {[%clk 0:00:27.6]} 26... cxb3 {[%clk 0:01:02.3]} 27. cxb3 {[%clk 0:00:27.7]}
27... Rc8 {[%clk 0:01:03]} 28. h3 {[%clk 0:00:25.8]} 28... Kg7 {[%clk
0:01:02.4]} 29. Ne7 {[%clk 0:00:20.2]} 29... Rc1+ {[%clk 0:01:01.8]} 30. Kh2
{[%clk 0:00:19.8]} 30... f6 {[%clk 0:00:53.6]} 31. Nf5+ {[%clk 0:00:18.8]} 31...
Kg6 {[%clk 0:00:51.1]} 32. Ra7 {[%clk 0:00:17.5]} 32... Nf7 {[%clk 0:00:51.4]}
33. Nh4+ {[%clk 0:00:15.2]} 33... Kg7 {[%clk 0:00:51]} 34. Nf5+ {[%clk
0:00:15.4]} 34... Kg6 {[%clk 0:00:48.7]} 35. b4 {[%clk 0:00:15.8]} 35... Rb1
{[%clk 0:00:45.9]} 36. Rb7 {[%clk 0:00:15.5]} 36... h5 {[%clk 0:00:46.2]} 37.
Nh4+ {[%clk 0:00:12.1]} 37... Kg7 {[%clk 0:00:46]} 38. Nf5+ {[%clk 0:00:12.2]}
38... Kg6 {[%clk 0:00:46.2]} 39. b5 {[%clk 0:00:12.8]} 39... Rb4 {[%clk
0:00:45.8]} 40. Ne7+ {[%clk 0:00:08.9]} 40... Kg7 {[%clk 0:00:42.5]} 41. Nf5+
{[%clk 0:00:08.8]} 41... Kg6 {[%clk 0:00:42.4]} 42. Nh4+ {[%clk 0:00:02.6]}
42... Kg7 {[%clk 0:00:37.4]} 43. b6 {[%clk 0:00:03.2]} 43... Rxe4 {[%clk
0:00:23.5]} 44. Nf5+ {[%clk 0:00:03.5]} 44... Kg6 {[%clk 0:00:24.1]} 45. Ne7+
{[%clk 0:00:04.4]} 45... Kg5 {[%clk 0:00:19.9]} 46. Nd5 {[%clk 0:00:02.9]} 46...
Nd6 {[%clk 0:00:15.1]} 47. Rg7+ {[%clk 0:00:03.1]} 47... Kh6 {[%clk 0:00:15]}
48. Nxf6 {[%clk 0:00:02.9]} 48... Rb4 {[%clk 0:00:14.1]} 49. Rh7+ {[%clk
0:00:01.5]} 49... Kg6 {[%clk 0:00:14.2]} 50. Rd7 {[%clk 0:00:02.4]} 50... Rxb6
{[%clk 0:00:14.5]} 51. Nd5 {[%clk 0:00:03.3]} 51... Ra6 {[%clk 0:00:13.9]} 52.
Nc7 {[%clk 0:00:03.2]} 52... Rc6 {[%clk 0:00:13.7]} 53. Nd5 {[%clk 0:00:03.5]}
53... Kg5 {[%clk 0:00:08.5]} 54. Ne7 {[%clk 0:00:02.9]} 54... Ra6 {[%clk
0:00:08.8]} 55. Nd5 {[%clk 0:00:02.7]} 55... Nf5 {[%clk 0:00:08.9]} 56. Ne7
{[%clk 0:00:02.3]} 56... Nh6 {[%clk 0:00:08.5]} 57. Nd5 {[%clk 0:00:02.3]} 57...
h4 {[%clk 0:00:08.9]} 58. Rg7+ {[%clk 0:00:02.3]} 58... Kf5 {[%clk 0:00:09.4]}
59. Ne3+ {[%clk 0:00:02.6]} 59... Kf6 {[%clk 0:00:09]} 60. Rh7 {[%clk
0:00:02.1]} 60... Kg6 {[%clk 0:00:09.5]} 61. Re7 {[%clk 0:00:02.6]} 61... Ra3
{[%clk 0:00:09.8]} 62. Re4 {[%clk 0:00:02.9]} 62... Kg5 {[%clk 0:00:09.5]} 63.
Ng4 {[%clk 0:00:03.1]} 63... Nf5 {[%clk 0:00:09.9]} 64. Re5 {[%clk 0:00:03.2]}
64... Kg6 {[%clk 0:00:09.4]} 65. Re6+ {[%clk 0:00:03.5]} 65... Kg7 {[%clk
0:00:09.1]} 66. Re5 {[%clk 0:00:04.4]} 66... Ng3 {[%clk 0:00:09.5]} 67. Rg5+
{[%clk 0:00:04.3]} 67... Kf7 {[%clk 0:00:09.7]} 68. Ne5+ {[%clk 0:00:04]} 68...
Kf6 {[%clk 0:00:09.8]} 69. Nf3 {[%clk 0:00:04]} 69... Rxf3 {[%clk 0:00:09.3]}
70. Rg4 {[%clk 0:00:01.8]} 70... Rf1 {[%clk 0:00:06]} 71. Rxg3 {[%clk
0:00:02.1]} 71... hxg3+ {[%clk 0:00:06]} 72. Kxg3 {[%clk 0:00:03]} 72... Kg5
{[%clk 0:00:06.9]} 73. h4+ {[%clk 0:00:02.9]} 73... Kh5 {[%clk 0:00:07.3]} 74.
Kh3 {[%clk 0:00:03.8]} 74... Rf4 {[%clk 0:00:07.7]} 75. Kg3 {[%clk 0:00:04.7]}
75... Rg4+ {[%clk 0:00:08.1]} 76. Kh3 {[%clk 0:00:05.3]} 76... Rxh4+ {[%clk
0:00:09]} 77. Kg3 {[%clk 0:00:06]} 77... Rg4+ {[%clk 0:00:09.9]} 0-1

[Event "*** Titled Tuesday Blitz"]
[Site "Chess.com"]
[Date "2020.05.12"]
[Round "6"]
[White "AndrewDGreen"]
[Black "atalz0"]
[Result "1/2-1/2"]
[WhiteElo "2289"]
[BlackElo "2436"]
[TimeControl "180+1"]
[EndTime "11:08:04 PDT"]
[Termination "Game drawn by agreement"]

1. e4 {[%clk 0:02:58.7]} 1... d5 {[%clk 0:02:59.6]} 2. exd5 {[%clk 0:02:56.7]}
2... Nf6 {[%clk 0:02:59.5]} 3. Nf3 {[%clk 0:02:56.1]} 3... Nxd5 {[%clk
0:02:59.6]} 4. d4 {[%clk 0:02:56]} 4... Bg4 {[%clk 0:02:59.6]} 5. c4 {[%clk
0:02:54.9]} 5... Nb6 {[%clk 0:02:58.5]} 6. c5 {[%clk 0:02:55.3]} 6... N6d7
{[%clk 0:02:57]} 7. Be2 {[%clk 0:02:55.5]} 7... Nc6 {[%clk 0:02:53.7]} 8. O-O
{[%clk 0:02:45.6]} 8... e6 {[%clk 0:02:44.6]} 9. Nc3 {[%clk 0:02:37.6]} 9... Be7
{[%clk 0:02:43.1]} 10. h3 {[%clk 0:02:31.4]} 10... Bh5 {[%clk 0:02:33.2]} 11.
Bf4 {[%clk 0:02:27.6]} 11... O-O {[%clk 0:02:22.4]} 12. a3 {[%clk 0:02:24.4]}
12... Nf6 {[%clk 0:02:16.2]} 13. Be3 {[%clk 0:01:56.8]} 13... Nd5 {[%clk
0:02:05.8]} 14. Nxd5 {[%clk 0:01:47.7]} 14... Qxd5 {[%clk 0:02:06.7]} 15. b4
{[%clk 0:01:44.2]} 15... Bf6 {[%clk 0:01:54.1]} 16. b5 {[%clk 0:01:30.1]} 16...
Na5 {[%clk 0:01:47.4]} 17. Qa4 {[%clk 0:01:29.9]} 17... b6 {[%clk 0:01:42.7]}
18. Rac1 {[%clk 0:01:10.2]} 18... Rfd8 {[%clk 0:01:15.4]} 19. Rfd1 {[%clk
0:01:06.7]} 19... h6 {[%clk 0:00:49.9]} 20. Bf4 {[%clk 0:00:56.8]} 20... Rac8
{[%clk 0:00:30.1]} 21. Bd2 {[%clk 0:00:51.9]} 21... Qb3 {[%clk 0:00:26.4]} 22.
Qb4 {[%clk 0:00:37]} 22... Bxf3 {[%clk 0:00:17.2]} 23. Bxf3 {[%clk 0:00:34.9]}
23... Rxd4 {[%clk 0:00:17.4]} 24. Qc3 {[%clk 0:00:15.2]} 24... Qxb5 {[%clk
0:00:14.5]} 25. Qe3 {[%clk 0:00:12.9]} 25... Nc4 {[%clk 0:00:10.7]} 26. Qe2
{[%clk 0:00:12.3]} 26... a6 {[%clk 0:00:06.4]} 27. Be3 {[%clk 0:00:12.5]} 27...
Nxe3 {[%clk 0:00:05.1]} 28. Qxe3 {[%clk 0:00:12.8]} 28... Rxd1+ {[%clk
0:00:04.3]} 29. Rxd1 {[%clk 0:00:13.5]} 29... Qxc5 {[%clk 0:00:04.7]} 30. Qe4
{[%clk 0:00:12.7]} 30... Qe5 {[%clk 0:00:04.1]} 31. Qb7 {[%clk 0:00:12.5]} 31...
Re8 {[%clk 0:00:03.8]} 32. Bc6 {[%clk 0:00:12.2]} 32... Rf8 {[%clk 0:00:03.4]}
33. Rd7 {[%clk 0:00:11.8]} 33... a5 {[%clk 0:00:02.9]} 34. g3 {[%clk 0:00:11.9]}
34... Qc5 {[%clk 0:00:02.9]} 35. Rxc7 {[%clk 0:00:11.9]} 35... Bd4 {[%clk
0:00:03]} 36. Be4 {[%clk 0:00:09.9]} 36... Bxf2+ {[%clk 0:00:02.3]} 37. Kg2
{[%clk 0:00:10.7]} 37... Qe3 {[%clk 0:00:02.4]} 38. Bf3 {[%clk 0:00:10.4]} 38...
Be1 {[%clk 0:00:02.2]} 39. Rc2 {[%clk 0:00:09.3]} 39... Qd3 {[%clk 0:00:02]} 40.
Re2 {[%clk 0:00:08.4]} 40... Bd2 {[%clk 0:00:02.1]} 41. Qc6 {[%clk 0:00:07.7]}
41... Be3 {[%clk 0:00:02.3]} 42. a4 {[%clk 0:00:07.1]} 42... Bd4 {[%clk
0:00:02.5]} 43. h4 {[%clk 0:00:07.1]} 43... Bc5 {[%clk 0:00:02.6]} 44. Re1
{[%clk 0:00:07.1]} 44... Qd2+ {[%clk 0:00:02.6]} 45. Re2 {[%clk 0:00:07.6]}
45... Qc1 {[%clk 0:00:03.2]} 46. Qe4 {[%clk 0:00:06.9]} 46... Qg1+ {[%clk
0:00:03.4]} 47. Kh3 {[%clk 0:00:07.5]} 47... g6 {[%clk 0:00:03.8]} 48. h5 {[%clk
0:00:07.6]} 48... Kg7 {[%clk 0:00:03.9]} 49. hxg6 {[%clk 0:00:07.1]} 49... fxg6
{[%clk 0:00:04.3]} 50. Qe5+ {[%clk 0:00:07.5]} 50... Kh7 {[%clk 0:00:03.7]} 51.
Bg2 {[%clk 0:00:07.9]} 51... Qd4 {[%clk 0:00:03.4]} 52. Qc7+ {[%clk 0:00:07.8]}
52... Kh8 {[%clk 0:00:02.6]} 53. Rxe6 {[%clk 0:00:07.8]} 53... Qg7 {[%clk
0:00:02.7]} 54. Qc6 {[%clk 0:00:07.3]} 54... Rf7 {[%clk 0:00:01.9]} 55. Rxg6
{[%clk 0:00:07.3]} 55... Qf8 {[%clk 0:00:01.7]} 56. Rxh6+ {[%clk 0:00:07.6]}
56... Rh7 {[%clk 0:00:01.2]} 57. Rxh7+ {[%clk 0:00:07]} 57... Kxh7 {[%clk
0:00:02.1]} 58. Kg4 {[%clk 0:00:07.5]} 58... Qg7+ {[%clk 0:00:01.9]} 59. Kh4
{[%clk 0:00:07]} 59... Qh6+ {[%clk 0:00:02]} 60. Qxh6+ {[%clk 0:00:06.4]} 60...
Kxh6 {[%clk 0:00:02.4]} 61. Kg4 {[%clk 0:00:06.7]} 61... Kg6 {[%clk 0:00:02.6]}
62. Bc6 {[%clk 0:00:07]} 62... Kf6 {[%clk 0:00:03.5]} 63. Kf4 {[%clk 0:00:07.4]}
63... Bd6+ {[%clk 0:00:03.9]} 64. Kg4 {[%clk 0:00:07.7]} 64... Be5 {[%clk
0:00:03.9]} 65. Bb5 {[%clk 0:00:08.6]} 65... Ke6 {[%clk 0:00:04.3]} 66. Kh4
{[%clk 0:00:08.8]} 66... Bd6 {[%clk 0:00:04.7]} 67. g4 {[%clk 0:00:09.3]} 67...
Kf6 {[%clk 0:00:05.1]} 68. Kh5 {[%clk 0:00:09.7]} 68... Kg7 {[%clk 0:00:05.5]}
69. g5 {[%clk 0:00:10.2]} 69... Be7 {[%clk 0:00:05.8]} 70. g6 {[%clk 0:00:10.5]}
70... Bf6 {[%clk 0:00:06.2]} 71. Be8 {[%clk 0:00:10.6]} 71... Bd8 {[%clk
0:00:06.7]} 72. Bf7 {[%clk 0:00:11.1]} 72... Be7 {[%clk 0:00:07.1]} 73. Kg4
{[%clk 0:00:11.5]} 73... Bc5 {[%clk 0:00:07.6]} 74. Kf5 {[%clk 0:00:11.9]} 74...
Bg1 {[%clk 0:00:08.1]} 75. Ke6 {[%clk 0:00:12.4]} 75... Bc5 {[%clk 0:00:08.6]}
76. Kd7 {[%clk 0:00:12.8]} 76... Bg1 {[%clk 0:00:09.1]} 77. Kc6 {[%clk
0:00:13.3]} 77... Bc5 {[%clk 0:00:09.7]} 78. Kb5 {[%clk 0:00:13.8]} 78... Bg1
{[%clk 0:00:08.6]} 79. Kc6 {[%clk 0:00:14.1]} 79... Bc5 {[%clk 0:00:08.8]} 80.
Kb5 {[%clk 0:00:14.6]} 80... Bg1 {[%clk 0:00:08.4]} 1/2-1/2

[Event "*** Titled Tuesday Blitz"]
[Site "Chess.com"]
[Date "2020.05.12"]
[Round "6"]
[White "awesomevishesh"]
[Black "javirec"]
[Result "1-0"]
[WhiteElo "2440"]
[BlackElo "2279"]
[TimeControl "180+1"]
[EndTime "11:08:04 PDT"]
[Termination "awesomevishesh won by checkmate"]

1. d4 {[%clk 0:03:00.9]} 1... Nf6 {[%clk 0:02:57.4]} 2. c4 {[%clk 0:03:01.1]}
2... g6 {[%clk 0:02:56.9]} 3. g3 {[%clk 0:03:01.6]} 3... Bg7 {[%clk 0:02:56.8]}
4. Bg2 {[%clk 0:03:02.4]} 4... d6 {[%clk 0:02:56.8]} 5. Nf3 {[%clk 0:03:03.3]}
5... O-O {[%clk 0:02:55.1]} 6. O-O {[%clk 0:03:03.9]} 6... Nbd7 {[%clk
0:02:52.4]} 7. Nc3 {[%clk 0:03:03.9]} 7... e5 {[%clk 0:02:52.2]} 8. e4 {[%clk
0:03:03.9]} 8... exd4 {[%clk 0:02:49.7]} 9. Nxd4 {[%clk 0:03:04.8]} 9... Nc5
{[%clk 0:02:49.8]} 10. h3 {[%clk 0:03:04.5]} 10... a5 {[%clk 0:02:38.5]} 11.
Ndb5 {[%clk 0:03:02.6]} 11... Re8 {[%clk 0:02:34.1]} 12. Re1 {[%clk 0:03:01.8]}
12... Bf8 {[%clk 0:02:27.1]} 13. Bg5 {[%clk 0:02:53.2]} 13... Ne6 {[%clk
0:02:21.7]} 14. Be3 {[%clk 0:02:33.8]} 14... c6 {[%clk 0:02:19.9]} 15. Nd4
{[%clk 0:02:32.7]} 15... Nc5 {[%clk 0:02:15.8]} 16. Qc2 {[%clk 0:02:32.4]} 16...
Nfd7 {[%clk 0:02:00.2]} 17. Rad1 {[%clk 0:02:30.4]} 17... Qc7 {[%clk 0:01:45.8]}
18. b3 {[%clk 0:02:16.9]} 18... Nb6 {[%clk 0:01:30.7]} 19. f4 {[%clk 0:02:09.1]}
19... Bd7 {[%clk 0:01:02.6]} 20. Bf2 {[%clk 0:02:03.3]} 20... Rad8 {[%clk
0:01:01]} 21. a3 {[%clk 0:01:47.6]} 21... Na6 {[%clk 0:00:48.4]} 22. Nf3 {[%clk
0:01:36.3]} 22... Bc8 {[%clk 0:00:45.5]} 23. Bd4 {[%clk 0:01:29.3]} 23... Nd7
{[%clk 0:00:43.1]} 24. Qf2 {[%clk 0:01:15.2]} 24... Ndc5 {[%clk 0:00:40.6]} 25.
Qc2 {[%clk 0:01:10.9]} 25... Ne6 {[%clk 0:00:29.9]} 26. Be3 {[%clk 0:01:06.4]}
26... Nec5 {[%clk 0:00:29.1]} 27. Bd4 {[%clk 0:01:05.7]} 27... Ne6 {[%clk
0:00:29.1]} 28. Bf6 {[%clk 0:01:05.6]} 28... Be7 {[%clk 0:00:27.8]} 29. Bxe7
{[%clk 0:01:05.2]} 29... Qxe7 {[%clk 0:00:27.8]} 30. f5 {[%clk 0:00:57.9]} 30...
Nec5 {[%clk 0:00:27.3]} 31. g4 {[%clk 0:00:52.1]} 31... Nd7 {[%clk 0:00:21.9]}
32. g5 {[%clk 0:00:44.8]} 32... Ne5 {[%clk 0:00:21.7]} 33. f6 {[%clk 0:00:42.9]}
33... Qf8 {[%clk 0:00:19.2]} 34. Nd4 {[%clk 0:00:39.9]} 34... Nc7 {[%clk
0:00:18.3]} 35. Re3 {[%clk 0:00:35]} 35... Ne6 {[%clk 0:00:17.2]} 36. Nxe6
{[%clk 0:00:32.8]} 36... Bxe6 {[%clk 0:00:18.1]} 37. Rg3 {[%clk 0:00:29.7]}
37... h6 {[%clk 0:00:15.6]} 38. h4 {[%clk 0:00:28.8]} 38... h5 {[%clk
0:00:10.3]} 39. Rd2 {[%clk 0:00:25.7]} 39... Nd7 {[%clk 0:00:09.3]} 40. Ne2
{[%clk 0:00:24.7]} 40... c5 {[%clk 0:00:09]} 41. Nf4 {[%clk 0:00:23.5]} 41...
Ne5 {[%clk 0:00:09.2]} 42. Bf1 {[%clk 0:00:19.1]} 42... Nc6 {[%clk 0:00:09.3]}
43. Qc3 {[%clk 0:00:17.2]} 43... Nd4 {[%clk 0:00:09.4]} 44. Rxd4 {[%clk
0:00:17.4]} 44... cxd4 {[%clk 0:00:10.3]} 45. Qxd4 {[%clk 0:00:18.3]} 45... Rc8
{[%clk 0:00:06.1]} 46. Rd3 {[%clk 0:00:16.6]} 46... Bg4 {[%clk 0:00:04.7]} 47.
Nd5 {[%clk 0:00:12.3]} 47... Rcd8 {[%clk 0:00:04.5]} 48. Bg2 {[%clk 0:00:09.7]}
48... Re5 {[%clk 0:00:02.9]} 49. Qb6 {[%clk 0:00:09]} 49... Rde8 {[%clk
0:00:01.5]} 50. Qxa5 {[%clk 0:00:08.3]} 50... Kh7 {[%clk 0:00:02.4]} 51. Qb4
{[%clk 0:00:08.1]} 51... Be6 {[%clk 0:00:02.9]} 52. Nc3 {[%clk 0:00:07]} 52...
Bg4 {[%clk 0:00:03]} 53. Qxd6 {[%clk 0:00:07]} 53... R5e6 {[%clk 0:00:02.9]} 54.
Qxf8 {[%clk 0:00:06.7]} 54... Rxf8 {[%clk 0:00:02.7]} 55. Kf2 {[%clk 0:00:07]}
55... Kg8 {[%clk 0:00:02.8]} 56. a4 {[%clk 0:00:07.2]} 56... Rfe8 {[%clk
0:00:03.7]} 57. a5 {[%clk 0:00:06.9]} 57... Re5 {[%clk 0:00:04.6]} 58. b4 {[%clk
0:00:06.9]} 58... Bc8 {[%clk 0:00:03.7]} 59. Nd5 {[%clk 0:00:06.3]} 59... Kf8
{[%clk 0:00:02.9]} 60. Ke3 {[%clk 0:00:06.3]} 60... Kg8 {[%clk 0:00:02.2]} 61.
b5 {[%clk 0:00:06.5]} 61... Rf8 {[%clk 0:00:01.8]} 62. c5 {[%clk 0:00:06.6]}
62... Ree8 {[%clk 0:00:02.7]} 63. Ne7+ {[%clk 0:00:05.3]} 63... Kh7 {[%clk
0:00:02.2]} 64. Rd6 {[%clk 0:00:04.8]} 64... Be6 {[%clk 0:00:02.2]} 65. e5
{[%clk 0:00:04.6]} 65... Rd8 {[%clk 0:00:03.1]} 66. Bxb7 {[%clk 0:00:04.2]}
66... Rb8 {[%clk 0:00:03]} 67. a6 {[%clk 0:00:04.5]} 67... Rbc8 {[%clk
0:00:03.7]} 68. Kd4 {[%clk 0:00:04.7]} 68... Rcd8 {[%clk 0:00:03.8]} 69. b6
{[%clk 0:00:04.7]} 69... Rde8 {[%clk 0:00:03.9]} 70. a7 {[%clk 0:00:04.8]} 70...
Bg4 {[%clk 0:00:04.6]} 71. c6 {[%clk 0:00:04.2]} 71... Ra8 {[%clk 0:00:05.5]}
72. Bxa8 {[%clk 0:00:04.2]} 72... Re8 {[%clk 0:00:06.4]} 73. b7 {[%clk
0:00:04.4]} 73... Rxe7 {[%clk 0:00:06.3]} 74. fxe7 {[%clk 0:00:04.6]} 74... Bc8
{[%clk 0:00:05.6]} 75. e8=Q {[%clk 0:00:04.6]} 75... f5 {[%clk 0:00:06]} 76.
Qf7+ {[%clk 0:00:04.8]} 76... Kh8 {[%clk 0:00:06]} 77. Rd8# {[%clk 0:00:05.7]}
1-0